bitfinex/quotes_ETHUSD_20241101
["timestamp","ask_amount","ask_price","bid_price","bid_amount"]
[1730476839348,0.05000007,2502.1,2501.4,3.99775]
[1730476839503,0.05000007,2502.1,2501.3,3.99782]
[1730476839504,5.14471,2502.0,2501.3,3.99782]
[1730476839706,3.99729,2501.7,2501.0,3.99839]
[1730476839942,0.05000007,2501.6,2501.1,3.99821]
[1730476840258,0.05000007,2501.6,2500.5,5.05080921]
[1730476840259,3.99784,2501.4,2500.7,3.99872]
[1730476840540,0.05000007,2501.3,2500.7,3.99872]
[1730476840714,1.1753,2501.1,2500.2,3.99966]
[1730476840920,0.05000007,2501.3,2499.8,4.00023]
[1730476840921,1.1753,2500.7,2499.8,4.00023]
[1730476841111,3.99928,2500.5,2499.8,4.00029]
[1730476841312,1.1753,2500.7,2500.1,3.99969]
[1730476841539,0.05000007,2500.6,2500.1,3.99969]
[1730476841746,4.97143608,2500.6,2499.5,4.00078]
[1730476842055,3.99968,2500.2,2499.1,4.00139]
[1730476842342,1.2003,2500.4,2500.1,3.99971]
[1730476842753,1.2003,2500.4,2499.5,4.00075]
[1730476842981,0.05000007,2500.9,2500.3,3.99952]
[1730476843126,1.2063,2500.9,2500.4,4.07921483]
[1730476843330,0.05000007,2501.2,2500.6,3.99904]
[1730476843551,1.2063,2501.3,2501.0,7.99652]
[1730476843768,1.2063,2501.3,2501.1,3.99821]
[1730476844267,1.2063,2501.3,2501.0,3.99825]
[1730476844476,1.1921,2501.6,2501.0,3.99825]
[1730476844659,0.05000007,2501.5,2500.9,3.99853]
[1730476844971,1.1921,2501.6,2501.1,3.99824]
[1730476845264,0.05000007,2501.5,2501.1,3.99824]
[1730476845465,0.05000007,2501.5,2501.0,3.99837]
[1730476845687,0.57394108,2501.5,2500.2,1.1456]
[1730476845987,3.99845,2501.0,2499.8,5.10798]
[1730476846266,0.05000007,2500.9,2500.3,3.9995]
[1730476846467,0.05000007,2500.9,2500.3,7.99893]
[1730476846643,0.05000007,2500.9,2500.3,3.99943]
[1730476846843,0.05000007,2500.9,2500.1,3.99973]
[1730476846844,1.1403,2500.8,2500.1,3.99973]
[1730476847165,0.05000007,2500.7,2500.0,3.99989]
[1730476847377,0.05000007,2500.7,2499.9,4.00004]
[1730476847678,3.99931,2500.5,2499.8,4.00031]
[1730476847835,3.99931,2500.5,2499.9,4.00015]
[1730476847836,0.05000007,2500.5,2499.9,4.00015]
[1730476848036,0.05000007,2500.5,2499.9,8.00022]
[1730476848269,3.99939,2500.4,2499.7,4.00037]
[1730476848475,1.1403,2500.8,2500.1,3.99973]
[1730476848639,1.1403,2500.8,2500.2,3.99957]
[1730476848833,0.05000007,2500.7,2500.2,3.99957]
[1730476849276,0.05000007,2500.7,2500.3,3.99951]
[1730476849591,0.05000007,2500.7,2500.1,3.99973]
[1730476849770,5.12302007,2500.8,2500.1,3.99973]
[1730476849947,3.9992,2500.5,2499.7,4.00047]
[1730476850153,1.63660208,2500.8,2499.7,4.00048]
[1730476850378,1.12430007,2500.8,2499.8,4.00026]
[1730476850701,1.12430007,2500.8,2500.2,3.9996]
[1730476851198,1.12430007,2500.8,2500.2,7.99918]
[1730476851705,7.99791,2500.7,2499.9,4.00008]
[1730476851911,3.99888,2500.7,2499.9,4.00008]
[1730476852204,3.99936,2500.4,2499.7,4.00036]
[1730476852401,4.51137801,2500.6,2499.5,4.00068]
[1730476852560,3.99928,2500.5,2499.7,4.00048]
[1730476852763,3.998,2501.3,2500.7,3.99884]
[1730476852994,1.1639,2501.3,2500.8,0.07997336]
[1730476853179,1.1088,2502.1,2501.1,3.99816]
[1730476853374,1.1088,2502.1,2501.1,7.9963]
[1730476853375,3.99698,2501.9,2501.1,7.9963]
[1730476853599,1.1088,2502.1,2501.1,3.99815]
[1730476853786,1.1088,2502.0,2501.1,3.99815]
[1730476854105,1.1088,2502.0,2500.7,0.07995769]
[1730476854429,1.1088,2501.7,2501.0,3.99839]
[1730476854720,1.1088,2501.7,2501.0,3.99834]
[1730476854880,1.1088,2501.7,2501.2,3.99798]
[1730476855083,1.1088,2501.7,2501.4,3.99767]
[1730476855287,1.1088,2501.7,2501.3,3.99781]
[1730476855495,1.1088,2501.7,2501.3,3.99792]
[1730476855695,1.1088,2501.7,2501.2,3.99796]
[1730476855912,1.1088,2501.7,2501.4,3.99762]
[1730476856114,1.2097,2502.3,2501.6,3.99744]
[1730476856318,1.2097,2502.3,2501.6,3.99734]
[1730476856319,5.20604,2502.3,2501.6,3.99734]
[1730476856485,5.20604,2502.3,2501.5,3.99747]
[1730476856486,3.99649,2502.2,2501.5,3.99747]
[1730476856815,5.20604,2502.3,2501.6,3.99731]
[1730476856816,1.730304,2502.3,2501.6,3.99731]
[1730476856970,1.2097,2502.3,2501.7,3.99727]
[1730476857381,1.2097,2502.3,2501.5,3.99749]
[1730476857614,1.2097,2502.3,2501.5,3.99744]
[1730476857853,1.2097,2502.3,2501.6,3.99731]
[1730476858179,5.20604,2502.3,2501.5,3.99759]
[1730476858380,3.99681,2502.0,2501.3,3.99781]
[1730476858716,1.1227,2501.9,2501.3,3.99781]
[1730476858871,1.1227,2501.9,2501.4,3.99767]
[1730476859523,1.1227,2501.9,2501.1,3.99824]
[1730476859817,1.1227,2501.9,2501.5,3.99751]
[1730476859976,1.1227,2501.9,2501.6,3.99743]
[1730476860175,1.1227,2501.9,2501.3,3.99781]
[1730476860386,1.1227,2501.9,2501.1,1.166]
[1730476860387,1.1227,2501.9,2501.1,3.99814]
[1730476860604,1.1739,2501.7,2501.0,3.99837]
[1730476860928,1.1739,2501.7,2500.9,3.99846]
[1730476861093,3.99749,2501.6,2500.9,3.99846]
[1730476861292,5.17131,2501.7,2500.9,3.99845]
[1730476861492,1.1739,2501.7,2501.1,3.99812]
[1730476861906,3.99751,2501.6,2500.8,3.99862]
[1730476862323,1.1601,2501.4,2501.1,3.99823]
[1730476862529,1.1601,2501.4,2500.4,6.21680921]
[1730476862694,1.1601,2501.4,2500.5,7.5492]
[1730476863031,1.1601,2501.4,2500.9,3.99848]
[1730476863435,1.1601,2501.4,2500.5,3.9991]
[1730476863594,1.1567,2500.9,2499.9,4.00005]
[1730476863795,5.05080921,2501.9,2499.7,4.00038]
[1730476863796,1.1567,2500.7,2499.7,4.00038]
[1730476864045,0.34144676,2501.6,2500.6,3.99895]
[1730476864046,1.1567,2501.6,2500.6,3.99895]
[1730476864194,3.0,2501.3,2500.2,4.0796588]
[1730476864395,1.1567,2501.6,2500.2,0.0799788]
[1730476864396,5.15426,2501.6,2500.2,0.0799788]
[1730476864612,3.0,2501.5,2500.8,3.99872]
[1730476864791,1.1195,2501.3,2500.1,6.23450921]
[1730476865012,1.1195,2501.3,2501.0,3.99836]
[1730476865392,3.99724,2501.8,2500.3,3.99948]
[1730476865393,1.2269,2501.9,2501.1,0.07996236]
[1730476865511,1.2269,2501.9,2500.9,5.05080921]
[1730476865512,1.2269,2501.9,2501.2,4.54808]
[1730476865715,1.2269,2501.9,2501.4,3.99771]
[1730476866051,3.99712,2501.8,2500.8,0.55]
[1730476866201,3.99716,2501.8,2501.0,3.99832]
[1730476866409,3.99753,2501.6,2500.8,3.99858]
[1730476866604,1.1781,2501.3,2500.6,3.99892]
[1730476866927,1.1781,2501.3,2500.8,3.99859]
[1730476867131,1.1781,2501.3,2500.8,7.99723]
[1730476867329,1.1781,2501.3,2500.7,3.99886]
[1730476867548,1.1781,2501.3,2500.4,0.55]
[1730476867841,1.1781,2501.3,2500.3,5.13609]
[1730476867842,3.99841,2501.0,2500.3,3.99951]
[1730476868043,1.1976,2500.9,2500.3,3.99951]
[1730476868544,1.1976,2500.9,2500.5,3.99912]
[1730476868849,0.51758,2501.3,2500.0,3.99996]
[1730476868850,1.1976,2501.5,2500.8,3.99872]
[1730476869056,1.1976,2501.5,2501.1,3.99815]
[1730476869575,1.1976,2501.5,2500.5,5.05080921]
[1730476869576,1.1976,2501.5,2500.5,3.99919]
[1730476869772,1.1976,2501.5,2499.7,4.00034]
[1730476869773,1.1976,2500.5,2499.7,4.00034]
[1730476869974,3.99937,2500.4,2499.7,4.00034]
[1730476870388,1.1976,2500.5,2499.8,0.07999754]
[1730476870548,1.1976,2500.5,2499.4,4.00092]
[1730476870549,1.1976,2500.5,2499.3,9.05188921]
[1730476870753,1.1976,2500.5,2499.9,4.00003]
[1730476871156,1.1976,2500.5,2499.7,8.0007]
[1730476871483,1.1976,2500.5,2499.5,4.00067]
[1730476871650,5.21431,2500.1,2499.4,4.0009]
[1730476871854,1.2144,2500.1,2499.6,4.00056]
[1730476872063,1.2144,2500.1,2499.7,0.08000552]
[1730476872360,1.2144,2500.1,2499.6,4.00055]
[1730476872567,1.2144,2500.1,2499.7,4.0004]
[1730476872780,1.1403,2500.7,2500.2,3.99958]
[1730476872939,1.1403,2500.7,2500.0,3.99993]
[1730476873140,3.99911,2500.6,2499.8,4.00019]
[1730476873344,3.99911,2500.6,2499.9,4.00013]
[1730476873577,3.99911,2500.6,2500.0,3.99998]
[1730476873782,1.2287,2500.6,2499.4,7.00086]
[1730476874080,3.0,2500.5,2499.4,4.00095]
[1730476874279,1.2287,2500.6,2499.4,4.00095]
[1730476874280,1.2287,2500.6,2500.2,3.99967]
[1730476874784,3.99933,2500.5,2499.4,3.0]
[1730476874957,1.2287,2500.6,2499.7,3.0]
[1730476874958,5.22774,2500.6,2499.7,3.0]
[1730476875280,3.9981,2501.2,2498.9,6.25720921]
[1730476875281,1.1819,2500.1,2498.9,6.25720921]
[1730476875498,5.18189,2500.1,2499.3,4.00099]
[1730476875644,5.18189,2500.1,2499.5,4.00079]
[1730476875645,1.1819,2500.1,2499.5,4.00079]
[1730476875843,1.1819,2500.1,2499.7,4.00039]
[1730476876148,6.99937,2500.4,2499.4,1.2064]
[1730476876149,1.1819,2500.4,2499.4,1.2064]
[1730476876482,1.1327,2500.9,2500.4,3.99934]
[1730476876713,1.1327,2500.9,2500.4,7.9986]
[1730476876916,1.1327,2501.8,2501.1,3.99813]
[1730476877211,1.1327,2501.8,2501.6,3.99741]
[1730476877354,3.99627,2502.4,2501.6,3.99733]
[1730476877355,1.2166,2502.3,2501.6,3.99733]
[1730476877551,1.2166,2502.3,2501.8,3.99709]
[1730476877755,1.2166,2502.3,2501.7,3.99727]
[1730476877998,1.2166,2502.3,2501.9,3.99693]
[1730476878320,5.99000781,2503.7,2502.1,3.99662]
[1730476878321,1.2166,2502.7,2502.1,3.99662]
[1730476878474,1.2166,2502.7,2501.9,3.99688]
[1730476878475,5.21237,2502.7,2501.9,3.99688]
[1730476878791,1.737837,2502.7,2502.0,3.99678]
[1730476879185,1.2166,2502.7,2502.0,3.9967]
[1730476879359,1.2166,2502.7,2502.0,7.99337]
[1730476879555,1.2166,2502.7,2502.1,3.99658]
[1730476879792,1.2166,2502.7,2502.3,3.99621]
[1730476880205,1.2166,2502.7,2502.1,3.99652]
[1730476880456,1.2166,2502.7,2502.2,3.99648]
[1730476880593,1.2166,2502.7,2502.2,3.99638]
[1730476880798,1.2166,2502.7,2502.4,3.99607]
[1730476880979,1.2138,2503.5,2502.5,3.99599]
[1730476881299,3.99519,2503.1,2502.3,3.9962]
[1730476881606,1.2138,2503.0,2502.6,3.99571]
[1730476881825,1.2138,2503.0,2502.4,3.99606]
[1730476882025,1.2138,2503.0,2502.5,3.99592]
[1730476882208,1.2138,2503.0,2502.7,3.99558]
[1730476882519,1.2138,2503.0,2502.3,3.99632]
[1730476882520,1.2138,2503.0,2502.5,3.99588]
[1730476882720,1.2138,2503.0,2502.6,3.99582]
[1730476883083,1.2138,2503.0,2502.4,3.99604]
[1730476883580,1.2138,2503.0,2501.3,3.99776]
[1730476883581,3.99589,2502.6,2501.7,1.1685]
[1730476883781,1.1376,2502.5,2501.4,7.99531]
[1730476884019,3.99616,2502.4,2501.4,3.99762]
[1730476884225,1.1376,2502.3,2501.4,3.99762]
[1730476884430,5.13401,2502.3,2501.5,3.9976]
[1730476884637,0.913017,2502.2,2501.6,3.99735]
[1730476884957,1.1376,2502.3,2501.8,3.99712]
[1730476885089,1.1376,2502.3,2502.1,3.99662]
[1730476885934,1.1118,2503.1,2502.8,3.99551]
[1730476886132,1.1118,2503.1,2502.2,0.07992522]
[1730476886133,1.1118,2503.1,2502.4,1.1179]
[1730476886331,6.24412315,2504.3,2503.0,3.9952]
[1730476886332,1.1118,2503.7,2503.0,3.9952]
[1730476886536,1.1118,2503.7,2503.1,3.99502]
[1730476886537,1.622387,2503.7,2503.1,3.99502]
[1730476886903,1.622387,2503.7,2503.1,7.99004]
[1730476887137,1.622387,2503.7,2502.6,3.99578]
[1730476887138,5.616567,2503.7,2502.8,3.99547]
[1730476887303,1.1118,2503.7,2503.2,3.99488]
[1730476887503,1.1118,2503.7,2502.6,4.1615]
[1730476887504,1.1118,2503.7,2503.0,3.9951]
[1730476887704,1.1118,2503.7,2502.8,0.55]
[1730476887904,5.10598,2503.7,2502.9,3.99521]
[1730476888131,1.1118,2503.7,2503.2,3.99475]
[1730476888344,1.1118,2503.7,2503.3,3.99469]
[1730476888546,3.61110014,2504.1,2503.3,3.99465]
[1730476888746,3.99361,2504.0,2503.3,3.99461]
[1730476888953,3.99378,2503.9,2503.3,3.99461]
[1730476889117,5.05080921,2504.3,2502.9,3.99526]
[1730476889316,3.99409,2503.7,2502.9,3.99529]
[1730476889543,3.99386,2503.9,2503.1,3.99489]
[1730476889764,3.99392,2503.8,2503.1,3.99496]
[1730476889920,3.99386,2503.9,2503.2,3.99487]
[1730476890117,0.62512949,2504.2,2502.9,3.99524]
[1730476890319,3.99451,2503.5,2502.7,3.99553]
[1730476890519,7.98905,2503.5,2502.8,3.99552]
[1730476890719,3.99451,2503.5,2502.9,3.99536]
[1730476890920,0.55,2503.7,2502.3,3.99623]
[1730476891225,3.99579,2502.7,2501.9,3.99696]
[1730476891574,1.1149,2502.8,2502.2,3.99643]
[1730476891798,3.99603,2502.5,2501.8,3.997]
[1730476891943,5.11054,2502.8,2502.1,3.99652]
[1730476892143,3.99625,2502.4,2501.6,3.99732]
[1730476892367,3.99664,2502.1,2501.0,1.1659]
[1730476892651,3.99664,2502.1,2500.9,5.05080921]
[1730476892652,1.139,2502.2,2500.9,3.99849]
[1730476892878,5.136,2501.9,2501.2,3.99805]
[1730476893251,5.136,2501.9,2500.6,5.23191]
[1730476893252,1.139,2501.9,2501.3,3.99777]
[1730476893602,1.139,2501.9,2501.6,3.99728]
[1730476893898,1.139,2502.3,2502.0,3.99679]
[1730476894346,1.139,2502.3,2501.4,0.55]
[1730476894545,1.139,2502.3,2502.1,3.99663]
[1730476895170,1.1381,2502.8,2502.7,3.99568]
[1730476895373,1.1381,2503.4,2502.3,3.99623]
[1730476895700,1.1381,2503.4,2502.4,0.0799175]
[1730476895847,1.1381,2503.4,2502.6,3.99584]
[1730476896050,1.1381,2503.4,2502.8,0.55]
[1730476896356,1.2199,2503.8,2503.5,3.9944]
[1730476896584,1.2199,2503.8,2503.5,3.99429]
[1730476896753,1.79375489,2504.4,2503.5,3.9943]
[1730476896958,3.99323,2504.3,2503.5,7.98859]
[1730476897188,5.78672489,2504.4,2503.6,3.99423]
[1730476897387,6.13961949,2504.4,2503.6,3.99423]
[1730476897547,6.13961949,2504.4,2503.7,3.994]
[1730476898186,2.14664949,2504.4,2503.8,7.98769]
[1730476898388,1.1687,2504.4,2503.9,3.99373]
[1730476898545,1.1687,2504.4,2503.8,3.99381]
[1730476898751,1.1687,2504.4,2503.3,3.99464]
[1730476898977,1.1687,2504.4,2504.0,3.99356]
[1730476899289,1.1687,2504.4,2504.1,3.99332]
[1730476899645,1.1687,2504.4,2504.1,7.98668]
[1730476899846,5.05080921,2505.5,2504.2,3.99326]
[1730476899847,1.1751,2505.2,2504.2,3.99326]
[1730476900090,3.99218,2504.9,2504.2,3.99326]
[1730476900361,4.508611,2505.1,2504.3,3.99304]
[1730476900848,4.508671,2505.1,2504.2,3.99313]
[1730476901251,4.508671,2505.1,2504.3,3.99302]
[1730476901458,0.516671,2505.1,2503.9,3.0]
[1730476901757,1.1751,2505.2,2504.3,3.99308]
[1730476901957,3.991,2505.7,2504.9,3.99207]
[1730476901958,1.2182,2505.7,2504.9,3.99207]
[1730476902159,1.2182,2505.7,2504.7,0.07984181]
[1730476902483,1.2182,2505.7,2505.0,3.99201]
[1730476902653,1.739095,2505.7,2505.0,3.99201]
[1730476902860,1.739095,2505.7,2505.0,3.99191]
[1730476903050,1.739095,2505.7,2505.2,3.99167]
[1730476903051,1.2182,2505.7,2505.2,3.99167]
[1730476903261,1.2182,2505.7,2505.0,3.99191]
[1730476903459,1.2182,2505.7,2505.2,3.99167]
[1730476903749,1.2182,2505.7,2505.0,3.99187]
[1730476903953,1.2182,2505.7,2504.9,3.99213]
[1730476904307,1.2182,2505.7,2505.1,3.99184]
[1730476904590,1.2182,2505.7,2505.3,3.99152]
[1730476904890,1.2182,2505.7,2505.1,3.99182]
[1730476905247,1.739096,2505.7,2505.1,3.99182]
[1730476905448,1.739096,2505.7,2505.1,7.98357]
[1730476905661,1.2182,2505.7,2505.2,3.99167]
[1730476905880,1.2182,2505.7,2505.1,7.98351]
[1730476906192,1.2182,2505.7,2505.4,3.99129]
[1730476906347,1.2182,2505.7,2505.2,3.99166]
[1730476906544,1.2182,2505.7,2505.4,3.99137]
[1730476906810,1.2182,2505.7,2505.2,7.98322]
[1730476907017,1.2182,2505.7,2505.2,3.99156]
[1730476907215,1.2182,2505.7,2505.4,3.99137]
[1730476907423,1.2182,2505.7,2505.2,3.99156]
[1730476907711,1.2182,2505.7,2504.8,7.98466]
[1730476907925,1.2182,2505.7,2504.9,3.07982991]
[1730476908124,1.2182,2505.7,2505.3,3.99143]
[1730476908409,3.99027,2506.1,2504.9,6.99208]
[1730476908410,1.2101,2506.1,2504.9,6.99208]
[1730476908624,1.2101,2506.1,2505.5,3.99111]
[1730476908773,1.2101,2506.1,2505.7,3.99089]
[1730476908969,1.2101,2506.1,2505.6,3.99097]
[1730476909177,1.2101,2506.1,2505.8,3.99073]
[1730476909675,0.62451908,2506.8,2505.9,3.99052]
[1730476909676,1.1111,2506.4,2505.9,3.99052]
[1730476909985,1.1111,2506.4,2505.9,3.99048]
[1730476910376,1.1111,2506.4,2506.0,3.99041]
[1730476910601,5.10006,2507.0,2506.1,1.2304]
[1730476910923,5.10006,2507.0,2506.0,3.99031]
[1730476910924,3.98915,2506.8,2506.0,7.9806]
[1730476911126,3.98962,2506.5,2505.6,3.99093]
[1730476911339,1.1111,2506.6,2505.6,3.99106]
[1730476911502,1.1111,2506.6,2506.1,3.99014]
[1730476911693,3.98917,2506.8,2506.1,3.99014]
[1730476911898,5.625806,2506.9,2506.2,3.99007]
[1730476912342,5.625806,2506.9,2506.1,3.99014]
[1730476912635,1.636706,2506.9,2506.3,3.98985]
[1730476912837,1.636706,2506.9,2506.4,3.98978]
[1730476912838,1.1267,2506.9,2506.4,3.98978]
[1730476913135,1.1267,2506.9,2506.5,3.98961]
[1730476913539,1.1267,2506.9,2506.3,3.98978]
[1730476913998,1.1267,2506.9,2506.4,3.98978]
[1730476914196,1.1267,2506.9,2506.3,3.98978]
[1730476914798,1.1267,2506.9,2506.3,7.97964]
[1730476915005,1.1267,2506.9,2506.4,3.98969]
[1730476915729,1.1267,2506.9,2506.5,3.98961]
[1730476916513,3.98861,2507.2,2506.5,3.98957]
[1730476916697,3.98861,2507.2,2506.3,3.98984]
[1730476916698,1.1668,2507.3,2506.8,3.9891]
[1730476916897,1.1668,2507.3,2506.4,3.98968]
[1730476917115,0.62424709,2507.9,2507.8,3.98755]
[1730476917343,5.15335,2508.5,2508.0,3.98717]
[1730476917344,1.1668,2508.5,2508.0,3.98717]
[1730476917498,1.1668,2508.5,2507.9,3.9873]
[1730476918025,1.1668,2508.5,2508.0,7.97426]
[1730476918229,1.1668,2508.5,2508.0,3.98713]
[1730476918747,1.1668,2508.5,2508.1,3.98707]
[1730476919253,1.1668,2508.5,2508.0,3.98713]
[1730476919254,1.1668,2508.5,2508.0,7.97428]
[1730476919536,1.1668,2508.5,2508.1,3.98704]
[1730476920299,1.1668,2508.5,2508.0,3.98713]
[1730476920623,1.1668,2508.5,2508.1,3.98697]
[1730476920814,1.1668,2508.5,2507.7,4.1409]
[1730476921140,1.1668,2508.5,2508.1,3.98707]
[1730476921341,1.1668,2508.5,2508.2,3.98683]
[1730476921745,0.1,2508.7,2508.1,3.98695]
[1730476922041,3.98637,2508.6,2507.9,3.98726]
[1730476922401,3.98637,2508.6,2508.0,3.98719]
[1730476922823,3.98637,2508.6,2507.5,3.98796]
[1730476922824,3.98709,2508.1,2507.3,1.1519]
[1730476923026,3.98766,2507.8,2507.1,3.98858]
[1730476923195,3.98766,2507.8,2506.7,3.98925]
[1730476923196,3.98803,2507.5,2506.8,3.98904]
[1730476923398,3.98843,2507.3,2506.6,3.98935]
[1730476923728,1.1384,2507.1,2506.2,1.2366]
[1730476923901,1.1384,2507.1,2506.7,3.98915]
[1730476924303,1.1384,2507.1,2506.5,3.9895]
[1730476924498,3.98923,2506.8,2506.1,3.99015]
[1730476924743,3.98884,2507.0,2506.3,3.98992]
[1730476924945,4.900501,2507.0,2506.4,3.98977]
[1730476925238,0.911601,2507.0,2506.3,3.98992]
[1730476925411,5.12707,2507.1,2506.4,3.98978]
[1730476925597,9.11584,2507.1,2506.4,3.98978]
[1730476925797,5.12707,2507.1,2506.4,3.98978]
[1730476926152,5.12715,2507.1,2506.2,3.98998]
[1730476926303,3.98891,2507.0,2506.3,3.98992]
[1730476926498,3.98891,2507.0,2506.3,3.98983]
[1730476926766,1.1897,2506.9,2506.1,3.99015]
[1730476927042,1.1897,2506.2,2505.8,3.99072]
[1730476927199,4.70326763,2506.9,2506.1,3.99026]
[1730476927200,4.1897,2506.9,2506.1,3.99026]
[1730476927402,3.98957,2506.6,2505.9,3.99046]
[1730476927651,3.98967,2506.5,2505.9,3.99046]
[1730476927800,4.1897,2506.9,2505.7,3.9908]
[1730476927999,1.2131,2506.2,2505.5,3.9911]
[1730476928241,1.2131,2506.2,2505.8,3.99064]
[1730476928412,3.9897,2506.5,2505.9,3.99058]
[1730476928413,6.98965,2506.5,2505.9,3.99058]
[1730476928601,6.98965,2506.5,2505.8,3.99064]
[1730476928602,3.98979,2506.4,2505.8,3.99064]
[1730476928942,3.0,2506.5,2505.8,7.9813]
[1730476928943,6.98963,2506.5,2505.8,7.9813]
[1730476929095,5.20267,2506.6,2506.1,3.99018]
[1730476929096,1.2131,2506.6,2506.1,3.99018]
[1730476929301,1.2131,2506.6,2506.1,7.98035]
[1730476929536,1.2131,2506.6,2506.2,3.98997]
[1730476929735,1.2131,2506.6,2506.3,3.98986]
[1730476929937,1.2131,2506.6,2506.1,3.99021]
[1730476930143,1.2131,2506.6,2505.7,3.99074]
[1730476930144,2.033325,2506.6,2505.7,3.99074]
[1730476930345,1.2131,2506.6,2506.0,3.99034]
[1730476930505,1.2131,2506.6,2506.1,3.99017]
[1730476931152,5.20259,2506.6,2506.1,3.99017]
[1730476931441,1.2131,2506.6,2506.1,3.99017]
[1730476932565,1.2131,2506.6,2505.6,3.0]
[1730476932712,1.2131,2506.6,2506.2,3.98997]
[1730476932911,1.2131,2506.6,2506.0,3.99033]
[1730476933112,3.98976,2506.5,2505.8,3.99063]
[1730476933338,3.98979,2506.4,2505.8,3.99063]
[1730476933551,1.2131,2506.6,2505.6,3.0]
[1730476933710,5.20264,2506.6,2506.0,3.99038]
[1730476933912,1.2131,2506.6,2506.3,3.98985]
[1730476934113,1.1332,2506.9,2506.2,0.07979746]
[1730476934355,1.1332,2507.4,2506.3,3.98992]
[1730476934568,1.1332,2507.4,2507.2,3.9884]
[1730476934747,3.98711,2508.1,2507.4,3.98818]
[1730476934748,1.1332,2507.8,2507.4,3.98818]
[1730476935054,9.50687773,2508.6,2507.5,0.07975951]
[1730476935055,1.1758,2508.2,2507.5,0.07975951]
[1730476935224,1.1758,2508.2,2507.6,3.98773]
[1730476935423,1.1758,2508.2,2507.5,3.98803]
[1730476935627,3.98732,2508.0,2507.2,3.98843]
[1730476935839,4.58414005,2508.0,2507.3,3.98833]
[1730476936209,0.59682005,2508.0,2507.0,3.98877]
[1730476936411,1.1758,2508.2,2507.6,3.98775]
[1730476936814,1.1758,2508.2,2507.7,3.98756]
[1730476937021,1.1758,2508.2,2507.8,3.98752]
[1730476937221,0.59682005,2508.4,2507.9,3.98738]
[1730476937454,0.59682005,2508.4,2508.1,3.98706]
[1730476937627,1.174,2508.5,2508.1,3.98706]
[1730476937835,1.174,2508.5,2507.8,3.98746]
[1730476938021,0.59682005,2508.4,2507.9,3.98737]
[1730476938222,0.59682005,2508.4,2507.9,3.98731]
[1730476938525,0.59682005,2508.4,2508.0,3.98716]
[1730476939161,0.59682005,2508.4,2508.2,3.98681]
[1730476939361,1.174,2508.5,2508.2,3.98681]
[1730476939578,1.174,2508.5,2507.8,3.98746]
[1730476939726,1.77082005,2508.5,2507.8,3.98746]
[1730476940272,1.77082005,2508.5,2507.9,3.98735]
[1730476940476,2.75514606,2508.5,2507.2,1.2086]
[1730476940732,2.75514606,2508.5,2507.3,3.98827]
[1730476940733,3.98725,2508.0,2507.3,3.98827]
[1730476940892,5.14791,2508.2,2507.4,3.98809]
[1730476941038,3.98741,2507.9,2507.2,3.98839]
[1730476941397,3.98797,2507.6,2506.8,3.98902]
[1730476941553,3.98797,2507.6,2506.5,1.1994]
[1730476941554,1.2091,2507.7,2506.7,3.98928]
[1730476941752,3.98812,2507.5,2506.7,3.98922]
[1730476941943,3.98803,2507.5,2506.4,3.98967]
[1730476942140,3.98803,2507.5,2506.2,1.1994]
[1730476942141,1.2091,2507.0,2506.2,1.1994]
[1730476942351,1.2091,2507.0,2506.7,3.9893]
[1730476942583,0.519668,2507.6,2506.8,3.989]
[1730476942584,1.2091,2507.4,2506.8,3.989]
[1730476942737,1.2091,2507.4,2506.8,4.0688988]
[1730476942943,3.98882,2507.1,2506.3,3.98994]
[1730476943187,5.19819,2506.9,2505.9,3.99047]
[1730476943386,5.19819,2506.9,2506.1,3.99014]
[1730476943597,1.2091,2506.9,2506.0,3.99029]
[1730476943888,3.98964,2506.5,2505.8,3.99064]
[1730476944238,1.2091,2506.9,2506.1,3.99017]
[1730476944239,3.0,2506.8,2506.1,3.99017]
[1730476944469,9.18728,2506.9,2506.2,3.98999]
[1730476944643,6.116918,2506.9,2506.0,3.99034]
[1730476944838,3.98914,2506.8,2506.0,3.99033]
[1730476945095,6.116918,2506.9,2505.5,1.1994]
[1730476945096,3.9898,2506.4,2505.5,1.1994]
[1730476945392,2.127828,2506.9,2505.5,1.1994]
[1730476945393,3.9901,2506.2,2505.5,1.1994]
[1730476945597,3.9901,2506.2,2504.5,3.99272]
[1730476945598,3.99075,2505.8,2505.0,5.21758]
[1730476945896,3.99053,2506.0,2505.3,3.99152]
[1730476946041,3.0,2506.1,2505.4,3.99129]
[1730476946248,1.1823,2506.3,2505.5,0.07981673]
[1730476946567,5.17226,2506.3,2505.0,1.2257]
[1730476946770,3.9906,2505.9,2505.2,3.99158]
[1730476946939,3.9906,2505.9,2505.0,5.21761]
[1730476946940,5.17233,2506.3,2505.5,3.99111]
[1730476947285,1.1823,2506.3,2505.2,3.9916]
[1730476947469,3.99072,2505.9,2505.2,3.9916]
[1730476947670,3.9905,2506.0,2505.0,5.21765]
[1730476947671,3.0,2506.1,2505.0,1.2257]
[1730476947871,6.99027,2506.1,2505.4,3.99133]
[1730476948058,3.9905,2506.0,2505.3,3.99151]
[1730476948252,5.17233,2506.3,2505.5,3.99106]
[1730476948584,3.99047,2506.0,2505.1,3.99176]
[1730476949084,1.1553,2505.7,2505.0,5.21759]
[1730476949279,1.1553,2505.7,2505.2,3.99168]
[1730476949478,1.1553,2506.2,2505.4,3.99129]
[1730476949681,3.99042,2506.1,2505.3,0.07982487]
[1730476949897,3.99042,2506.1,2505.3,4.07127487]